fUSD/lending_fUSD_20240918
["ID","MTS","AMOUNT","RATE_DAILY","PERIOD"]
[338473798,1726683040730,-151.0,0.0001497,2]
[338473800,1726683040739,-151.0,0.0001497,2]
[338473802,1726683040749,-410.904886,0.0001497,2]
[338473804,1726683040759,-410.904886,0.0001497,2]
[338473806,1726683040768,-5659.5733064,0.0001497,2]
[338473808,1726683040778,-36473.319623,0.0001497,2]
[338473810,1726683040787,-246.66894901,0.0001497,2]
[338473812,1726683040796,-150.0,0.00014973,2]
[338473814,1726683040806,-151.0,0.00014979,2]
[338473816,1726683040825,-151.0,0.00014979,2]
[338473818,1726683040834,-151.0,0.00014979,2]
[338473821,1726683040845,-151.0,0.00014979,2]
[338473824,1726683040855,-151.0,0.00014979,2]
[338473826,1726683040865,-151.0,0.00014979,2]
[338473829,1726683040874,-151.0,0.00014979,2]
[338473831,1726683040884,-165.460568,0.00014979,2]
[338473833,1726683040893,-151.0,0.00014979,2]
[338473835,1726683040903,-3626.65806208,0.0001498,2]
[338473837,1726683040913,-151.0,0.0001498,2]
[338473839,1726683040922,-151.0,0.0001498,2]
[338473841,1726683040932,-151.0,0.0001498,2]
[338473843,1726683040941,-151.0,0.0001498,2]
[338473845,1726683040950,-151.0,0.0001498,2]
[338473847,1726683040960,-151.0,0.0001498,2]
[338473849,1726683040969,-151.0,0.0001498,2]
[338473851,1726683040978,-151.0,0.0001498,2]
[338473853,1726683040987,-151.0,0.0001498,2]
[338473855,1726683040997,-153.244456,0.0001498,2]
[338473856,1726683041007,-153.244456,0.0001498,2]
[338473858,1726683041016,-151.0,0.0001498,2]
[338473860,1726683041025,-151.0,0.0001498,2]
[338473862,1726683041035,-151.0,0.0001498,2]
[338473864,1726683041044,-151.0,0.0001498,2]
[338473866,1726683041054,-151.0,0.0001498,2]
[338473868,1726683041064,-151.0,0.0001498,2]
[338473870,1726683041084,-151.0,0.0001498,2]
[338473872,1726683041093,-478.034595,0.0001498,2]
[338473874,1726683041103,-151.0,0.0001498,2]
[338473876,1726683041112,-478.034595,0.0001498,2]
[338473878,1726683041122,-12355.4163942,0.0001498,2]
[338473880,1726683041131,-151.0,0.0001498,2]
[338473882,1726683041140,-151.0,0.0001498,2]
[338473884,1726683041150,-316.907744,0.0001498,2]
[338473886,1726683041160,-316.907744,0.0001498,2]
[338473888,1726683041170,-422.0116326,0.0001498,2]
[338473890,1726683041179,-3497.9252754,0.0001498,2]
[338473892,1726683041188,-151.0,0.0001498,2]
[338473894,1726683041198,-151.0,0.0001498,2]
[338473896,1726683041208,-410.904886,0.0001498,2]
[338473898,1726683041217,-410.904886,0.0001498,2]
[338473900,1726683041226,-181.458085,0.0001498,2]
[338473902,1726683041235,-181.458085,0.0001498,2]
[338473904,1726683041244,-220.627076,0.0001498,2]
[338473906,1726683041254,-220.627076,0.0001498,2]
[338473908,1726683041263,-219.202956,0.0001498,2]
[338473910,1726683041272,-219.202956,0.0001498,2]
[338473912,1726683041281,-151.0,0.0001498,2]
[338473914,1726683041290,-697.705497,0.0001498,2]
[338473916,1726683041299,-697.705497,0.0001498,2]
[338473918,1726683041308,-151.0,0.0001498,2]
[338473920,1726683041325,-151.0,0.0001498,2]
[338473922,1726683041335,-151.0,0.0001498,2]
[338473924,1726683041343,-151.0,0.0001498,2]
[338473926,1726683041352,-3812.2788672,0.0001498,2]
[338473928,1726683041362,-151.0,0.0001498,2]
[338473929,1726683041371,-151.0,0.0001498,2]
[338473931,1726683041380,-151.0,0.0001498,2]
[338473933,1726683041390,-24503.5045876,0.0001498,2]
[338473935,1726683041399,-151.0,0.0001498,2]
[338473937,1726683041409,-151.0,0.0001498,2]
[338473939,1726683041419,-151.0,0.0001498,2]
[338473942,1726683041431,-18999.95757219,0.0001498,2]
[338473943,1726683041441,-151.0,0.0001498,2]
[338473945,1726683041451,-152.31,0.0001498,2]
[338473947,1726683041460,-152.31,0.0001498,2]
[338473948,1726683041470,-1000.0,0.00014982,2]
[338473949,1726683041479,-150.59,0.00014986,2]
[338473950,1726683041489,-164.575246,0.00014989,2]
[338473951,1726683041499,-164.575246,0.00014989,2]
[338473952,1726683041509,-151.0,0.00014989,2]
[338473953,1726683041518,-151.0,0.00014989,2]
[338473954,1726683041528,-151.0,0.00014989,2]
[338473955,1726683041537,-151.0,0.00014989,2]
[338473956,1726683041547,-151.0,0.00014989,2]
[338473957,1726683041556,-151.0,0.00014989,2]
[338473958,1726683041574,-151.0,0.00014989,2]
[338473959,1726683041585,-165.460568,0.00014989,2]
[338473960,1726683041595,-163.271742,0.00014989,2]
[338473961,1726683041605,-163.271742,0.00014989,2]
[338473962,1726683041614,-151.0,0.00014989,2]
[338473964,1726683041624,-250138.30493131,0.0001499,2]
[338473966,1726683041633,-151.0,0.0001499,2]
[338473968,1726683041643,-151.0,0.0001499,2]
[338473970,1726683041652,-151.0,0.0001499,2]
[338473972,1726683041662,-151.0,0.0001499,2]
[338473974,1726683041672,-164.575246,0.0001499,2]
[338473976,1726683041681,-164.575246,0.0001499,2]
[338473978,1726683041691,-151.0,0.0001499,2]
[338473980,1726683041700,-164.528677,0.0001499,2]
[338473981,1726683041710,-151.0,0.0001499,2]
[338473983,1726683041719,-151.0,0.0001499,2]
[338473985,1726683041729,-151.0,0.0001499,2]
[338473987,1726683041739,-151.0,0.0001499,2]
[338473989,1726683041750,-151.0,0.0001499,2]
[338473992,1726683041760,-151.0,0.0001499,2]
[338473994,1726683041769,-151.0,0.0001499,2]
[338473995,1726683041779,-151.0,0.0001499,2]
[338473997,1726683041788,-151.0,0.0001499,2]
[338473999,1726683041798,-151.0,0.0001499,2]
[338474001,1726683041807,-151.0,0.0001499,2]
[338474003,1726683041824,-165.460568,0.0001499,2]
[338474005,1726683041835,-151.0,0.0001499,2]
[338474007,1726683041844,-299.968311,0.0001499,2]
[338474009,1726683041854,-163.271742,0.0001499,2]
[338474011,1726683041863,-163.271742,0.0001499,2]
[338474013,1726683041872,-151.0,0.0001499,2]
[338474015,1726683041882,-151.0,0.0001499,2]
[338474017,1726683041891,-151.0,0.0001499,2]
[338474019,1726683041901,-151.0,0.0001499,2]
[338474021,1726683041911,-153.244456,0.0001499,2]
[338474023,1726683041921,-153.244456,0.0001499,2]
[338474025,1726683041931,-151.0,0.0001499,2]
[338474026,1726683041940,-151.0,0.0001499,2]
[338474027,1726683041949,-151.0,0.0001499,2]
[338474028,1726683041958,-151.0,0.0001499,2]
[338474029,1726683041967,-151.0,0.0001499,2]
[338474030,1726683041977,-160.226316,0.0001499,2]
[338474031,1726683041986,-151.0,0.0001499,2]
[338474032,1726683041996,-478.034595,0.0001499,2]
[338474033,1726683042005,-478.034595,0.0001499,2]
[338474034,1726683042015,-151.0,0.0001499,2]
[338474035,1726683042024,-151.0,0.0001499,2]
[338474036,1726683042034,-316.907744,0.0001499,2]
[338474037,1726683042044,-316.907744,0.0001499,2]
[338474038,1726683042054,-151.0,0.0001499,2]
[338474039,1726683042065,-151.0,0.0001499,2]
[338474040,1726683042086,-410.904886,0.0001499,2]
[338474041,1726683042095,-410.904886,0.0001499,2]
[338474042,1726683042105,-181.458085,0.0001499,2]
[338474043,1726683042114,-181.458085,0.0001499,2]
[338474044,1726683042123,-220.627076,0.0001499,2]
[338474045,1726683042132,-220.627076,0.0001499,2]
[338474046,1726683042142,-219.202956,0.0001499,2]
[338474047,1726683042152,-219.202956,0.0001499,2]
[338474048,1726683042162,-151.0,0.0001499,2]
[338474049,1726683042173,-697.705497,0.0001499,2]
[338474050,1726683042182,-697.705497,0.0001499,2]
[338474051,1726683042192,-151.0,0.0001499,2]
[338474052,1726683042202,-151.0,0.0001499,2]
[338474053,1726683042212,-151.0,0.0001499,2]
[338474054,1726683042222,-151.0,0.0001499,2]
[338474055,1726683042231,-151.0,0.0001499,2]
[338474056,1726683042241,-151.0,0.0001499,2]
[338474057,1726683042251,-151.0,0.0001499,2]
[338474058,1726683042261,-151.0,0.0001499,2]
[338474059,1726683042271,-151.0,0.0001499,2]
[338474060,1726683042280,-151.0,0.0001499,2]
[338474061,1726683042290,-151.0,0.0001499,2]
[338474062,1726683042300,-153.735836,0.0001499,2]
[338474064,1726683042310,-153.735836,0.0001499,2]
[338474066,1726683042332,-151.0,0.0001499,2]
[338474068,1726683042343,-151.0,0.0001499,2]
[338474070,1726683042353,-154.306494,0.0001499,2]
[338474074,1726683042363,-151.0,0.0001499,2]
[338474078,1726683042372,-1000.0,0.00014997,2]
[338474081,1726683042382,-5503.23177583,0.00014999,2]
[338474084,1726683042392,-20188.81523408,0.00014999,2]
[338474090,1726683042402,-569.2942,0.00014999,2]
[338474094,1726683042413,-634.1216,0.00014999,2]
[338474100,1726683042430,-13664.02980216,0.00014999,2]
[338474106,1726683042440,-151.0,0.00014999,2]
[338474110,1726683042449,-151.0,0.00014999,2]
[338474112,1726683042459,-151.0,0.00014999,2]
[338474115,1726683042470,-2797.28011711,0.00015,2]
[338474118,1726683042480,-1319240.7116389,0.00015,2]
[338474120,1726683042489,-59573.57392055,0.00015,2]
[338474187,1726683043577,-14944.68974716,0.00015,2]
[338474189,1726683043592,-18158.9353055,0.00015,2]
[338474191,1726683043603,-303.885,0.00015,2]
[338474194,1726683043614,-5162.99999999,0.00015,2]
[338474196,1726683043625,-16471.93720576,0.00015,2]
[338474199,1726683043647,-122089.17687018,0.00015,2]
[338474284,1726683044550,-598.28925008,0.00015,2]
[338474287,1726683044562,-1207.34379262,0.00015,2]
[338474289,1726683044575,-1150.96848172,0.00015,2]
[338474291,1726683044587,-587.2287021,0.00015,2]
[338474293,1726683044598,-1822.441498,0.00015,2]
[338474296,1726683044609,-1279.35068544,0.00015,2]
[338474298,1726683044621,-725.79499999,0.00015,2]
[338474300,1726683044632,-300.0,0.00015,2]
[338474302,1726683044644,-609.66035885,0.00015,2]
[338474308,1726683044693,-22186.40180002,0.00015,2]
[338474320,1726683044795,-60336.30000001,0.00015,2]
[338474457,1726683046160,-2216.94258126,0.00013324,2]
[338474460,1726683046171,-1007.14376132,0.0001468,2]
[338474461,1726683046181,-151.0,0.0001496,2]
[338474463,1726683046190,-17089.20365742,0.00015,2]
[338474466,1726683046202,-60399.91892698,0.00015,2]
[338474468,1726683046213,-302.08442687,0.00015,2]
[338474568,1726683047283,-25236.76097826,0.00015,2]
[338474571,1726683047295,-1371.7686974,0.00015,2]
[338474573,1726683047306,-4246.81921635,0.00015,2]
[338474575,1726683047320,-942.316296,0.00015,2]
[338474583,1726683047483,-796252.80027061,0.00015,2]
[338474584,1726683047494,-15036.90740801,0.00015,2]
[338474585,1726683047507,-18386.04645497,0.00015,2]
[338474586,1726683047524,-548.79774281,0.00015,2]
[338474587,1726683047539,-562.6023957,0.00015,2]
[338474589,1726683047550,-730.07140233,0.00015,2]
[338474590,1726683047561,-652.62529538,0.00015,2]
[338474677,1726683048448,-743.3523116,0.00015,2]
[338474679,1726683048458,-2610.19070253,0.00015,2]
[338474681,1726683048471,-15833.7270836,0.00015,2]
[338474684,1726683048482,-7811.78430333,0.00015,2]
[338474686,1726683048493,-8237.222182,0.00015,2]
[338474688,1726683048506,-734.01641473,0.00015,2]
[338474690,1726683048518,-943.31862009,0.00015,2]
[338474699,1726683048604,-1996.88135758,0.00015,2]
[338474848,1726683050039,-3145.66036694,0.00015,2]
[338474850,1726683050050,-1223.77447204,0.00015,2]
[338474852,1726683050062,-635.39287192,0.00015,2]
[338474855,1726683050080,-588.94,0.00015,2]
[338474858,1726683050091,-812.74759037,0.00015,2]
[338474860,1726683050102,-6263.43505737,0.00015,2]
[338474862,1726683050113,-1571.6644637,0.00015,2]
[338474864,1726683050124,-1173.09686103,0.00015,2]
[338474866,1726683050134,-891.76385037,0.00015,2]
[338474869,1726683050147,-3929.113636,0.00015,2]
[338474871,1726683050158,-14599.27129953,0.00015,2]
[338474874,1726683050173,-1874.06416438,0.00015,2]
[338475111,1726683088472,500.0,0.00011164,2]
[338475112,1726683089220,500.0,0.00011164,2]
[338475113,1726683189549,170.28,0.00010959,2]
[338475114,1726683324547,1050.0,0.00011,2]
[338475115,1726683432772,352.72,0.00011849,2]
[338475116,1726683518455,534.98629148,0.000127,2]
[338475117,1726683714977,151.7,0.00010959,2]
[338475118,1726683975032,150.0,0.0001274,2]
[338475119,1726684007961,346.6,0.0001111,2]
[338475233,1726684232652,-150.0,0.00012879,2]
[338475235,1726684232662,-425.98332999,0.0001288,2]
[338475236,1726684232796,-582.41,0.0001288,2]
[338475237,1726684232807,-11646.55036155,0.0001288,2]
[338475238,1726684232849,-2519.95441177,0.0001288,2]
[338475239,1726684232861,-7444.75759163,0.0001288,2]
[338475242,1726684237728,-1819.65121736,0.0001288,2]
[338475243,1726684237740,-44757.15382601,0.0001288,2]
[338475244,1726684237751,-147245.08690649,0.0001288,2]
[338475245,1726684237762,-183.00821368,0.00012899,2]
[338475246,1726684237771,-514.9049,0.000129,2]
[338475247,1726684237781,-152.5,0.0001299,2]
[338475248,1726684237790,-502.6046741,0.00012999,2]
[338475249,1726684237800,-363.46,0.00013,2]
[338475250,1726684237809,-1100.0,0.00013,2]
[338475251,1726684237819,-1008.72,0.00013,2]
[338475252,1726684237828,-270767.10016479,0.00013,2]
[338475253,1726684237838,-722.75423014,0.00013,15]
[338475254,1726684237853,-48520.58238658,0.00013,2]
[338475255,1726684237863,-250.0,0.00013088,2]
[338475256,1726684237872,-174.28,0.00013088,2]
[338475257,1726684237882,-857.92,0.00013092,2]
[338475258,1726684237892,-2881.58360004,0.00013104,2]
[338475259,1726684237901,-250.0,0.00013204,2]
[338475260,1726684237910,-157.04,0.00013221,2]
[338475261,1726684237920,-487.62,0.00013223,2]
[338475262,1726684237929,-157.04,0.00013226,2]
[338475263,1726684237939,-157.04,0.0001323,2]
[338475264,1726684237948,-2336.77,0.0001323,2]
[338475265,1726684237957,-157.04,0.00013234,2]
[338475267,1726684237967,-157.04,0.00013239,2]
[338475268,1726684237976,-157.04,0.00013243,2]
[338475269,1726684237985,-157.04,0.00013248,2]
[338475270,1726684237994,-157.04,0.00013252,2]
[338475271,1726684238003,-157.04,0.00013257,2]
[338475272,1726684238012,-157.04,0.00013261,2]
[338475273,1726684238021,-157.04,0.00013265,2]
[338475274,1726684238031,-157.04,0.0001327,2]
[338475275,1726684238040,-157.04,0.00013274,2]
[338475276,1726684238049,-157.04,0.00013279,2]
[338475277,1726684238058,-157.04,0.00013283,2]
[338475278,1726684238067,-157.04,0.00013287,2]
[338475279,1726684238076,-2881.58359996,0.00013304,2]
[338475280,1726684238086,-1500.0,0.00013347,2]
[338475282,1726684238098,-346.6,0.00013374,2]
[338475284,1726684238107,-207.62,0.0001342,2]
[338475286,1726684238116,-174.37,0.00013441,2]
[338475287,1726684238125,-177.6,0.00013466,2]
[338475288,1726684238134,-2881.58359996,0.00013503,2]
[338475289,1726684238147,-150.99,0.00013699,2]
[338475290,1726684238157,-150.0,0.00013699,2]
[338475291,1726684238166,-1320.1351,0.000137,2]
[338475293,1726684238175,-2881.58359996,0.00013703,2]
[338475294,1726684238186,-1452.94,0.00013723,2]
[338475295,1726684238195,-499.99,0.00013723,2]
[338475296,1726684238204,-500.0,0.00013817,2]
[338475297,1726684238214,-1008.72,0.0001388,2]
[338475298,1726684238224,-2881.58359996,0.00013902,2]
[338475299,1726684238235,-500.0,0.00013904,2]
[338475300,1726684238244,-500.0,0.00013904,2]
[338475301,1726684238254,-176.13,0.00014007,2]
[338475302,1726684238263,-522.128,0.00014047,2]
[338475303,1726684238273,-167.777,0.00014047,2]
[338475304,1726684238282,-150.0,0.00014048,2]
[338475305,1726684238292,-339.6,0.00014048,2]
[338475306,1726684238603,-558.0,0.00014048,2]
[338475307,1726684238613,-810.0,0.00014048,2]
[338475308,1726684238623,-553.0,0.00014048,2]
[338475309,1726684238633,-1902.0,0.00014048,2]
[338475310,1726684238643,-806.0,0.00014048,2]
[338475311,1726684238652,-1917.0,0.00014048,2]
[338475312,1726684238662,-3346.0,0.00014048,2]
[338475313,1726684238672,-248.0,0.00014048,2]
[338475314,1726684238682,-1080.0,0.00014048,2]
[338475315,1726684238693,-150.0,0.00014048,2]
[338475316,1726684238703,-1548.0,0.00014048,2]
[338475317,1726684238713,-5865.0,0.00014048,2]
[338475318,1726684238722,-625.0,0.00014048,2]
[338475319,1726684238732,-430.461,0.00014048,2]
[338475320,1726684238741,-13486.0,0.00014048,2]
[338475321,1726684238751,-1262.0,0.00014048,2]
[338475322,1726684238761,-422.65,0.00014055,2]
[338475323,1726684238771,-753.16,0.00014055,2]
[338475324,1726684238780,-753.16,0.00014055,2]
[338475325,1726684238790,-422.65,0.00014055,2]
[338475326,1726684238799,-753.16,0.00014055,2]
[338475327,1726684238809,-421.84,0.00014055,2]
[338475328,1726684238818,-753.16,0.00014055,2]
[338475329,1726684238829,-753.16,0.00014055,2]
[338475330,1726684238838,-935.89,0.00014055,2]
[338475331,1726684238851,-150.0,0.00014059,2]
[338475332,1726684238860,-2881.58359996,0.00014102,2]
[338475333,1726684238870,-150.0,0.00014192,2]
[338475334,1726684238880,-357.9,0.00014192,2]
[338475335,1726684238889,-150.0,0.00014192,2]
[338475336,1726684238899,-428.04,0.00014192,2]
[338475337,1726684238908,-150.0,0.00014192,2]
[338475338,1726684238917,-150.0,0.00014192,2]
[338475339,1726684238926,-150.0,0.00014192,2]
[338475340,1726684238936,-428.04,0.00014192,2]
[338475341,1726684238945,-150.0,0.00014192,2]
[338475342,1726684238954,-357.9,0.00014192,2]
[338475343,1726684238964,-428.04,0.00014192,2]
[338475344,1726684238973,-250.86,0.00014192,2]
[338475345,1726684238982,-150.0,0.00014192,2]
[338475346,1726684238992,-150.0,0.00014192,2]
[338475347,1726684239001,-150.0,0.00014192,2]
[338475348,1726684239010,-150.0,0.00014192,2]
[338475349,1726684239019,-428.04,0.00014192,2]
[338475350,1726684239027,-150.0,0.00014192,2]
[338475351,1726684239036,-150.0,0.00014192,2]
[338475352,1726684239045,-150.0,0.00014192,2]
[338475353,1726684239054,-425.64,0.00014192,2]
[338475354,1726684239063,-150.0,0.00014192,2]
[338475355,1726684239072,-150.0,0.00014192,2]
[338475356,1726684239082,-150.0,0.00014192,2]
[338475357,1726684239091,-150.0,0.00014192,2]
[338475358,1726684239105,-150.0,0.00014192,2]
[338475359,1726684239114,-2881.58359996,0.00014301,2]
[338475360,1726684239123,-150.0,0.0001442,2]
[338475361,1726684239131,-160.46,0.00014483,2]
[338475362,1726684239147,-2881.58359996,0.00014501,2]
[338475363,1726684239156,-1000.0,0.00014521,2]
[338475364,1726684239166,-1114.436296,0.000147,2]
[338475365,1726684239176,-2881.58359996,0.000147,2]
[338475366,1726684239186,-857.92,0.00014728,2]
[338475367,1726684239195,-1008.72,0.0001476,2]
[338475368,1726684239204,-150.0,0.0001478,2]
[338475369,1726684239213,-334.77174,0.00014795,2]
[338475370,1726684239225,-3000.0,0.000148,2]
[338475371,1726684239235,-1182.0080997,0.00014824,2]
[338475372,1726684239244,-17600.0,0.00014834,2]
[338475373,1726684239254,-449.0,0.0001486,2]
[338475374,1726684239263,-2000.0,0.0001488,2]
[338475375,1726684239272,-500.0,0.0001488,2]
[338475376,1726684239282,-200.0,0.0001488,2]
[338475377,1726684239291,-192.0686,0.000149,2]
[338475378,1726684239301,-2881.58359996,0.000149,2]
[338475379,1726684239310,-1251.45446559,0.000149,2]
[338475380,1726684239320,-500.0,0.00014973,2]
[338475381,1726684239329,-9456.0647976,0.0001498,2]
[338475382,1726684239338,-152.5,0.0001498,2]
[338475383,1726684239355,-12917.89670912,0.0001498,2]
[338475384,1726684239364,-1182.0080997,0.0001498,2]
[338475385,1726684239374,-15366.1052961,0.0001499,2]
[338475386,1726684239385,-152.5,0.0001499,2]
[338475387,1726684239395,-152.5,0.0001499,2]
[338475388,1726684239404,-152.5,0.0001499,2]
[338475389,1726684239414,-152.5,0.0001499,2]
[338475390,1726684239424,-152.5,0.0001499,2]
[338475392,1726684239434,-152.5,0.0001499,2]
[338475393,1726684239443,-152.5,0.0001499,2]
[338475394,1726684239453,-152.5,0.0001499,2]
[338475396,1726684239463,-152.5,0.0001499,2]
[338475397,1726684239472,-152.5,0.0001499,2]
[338475398,1726684239482,-152.5,0.0001499,2]
[338475399,1726684239492,-152.5,0.0001499,2]
[338475400,1726684239501,-152.5,0.0001499,2]
[338475401,1726684239510,-152.5,0.0001499,2]
[338475402,1726684239520,-152.5,0.0001499,2]
[338475403,1726684239529,-152.5,0.0001499,2]
[338475404,1726684239538,-152.5,0.0001499,2]
[338475405,1726684239548,-152.5,0.0001499,2]
[338475406,1726684239557,-152.5,0.0001499,2]
[338475407,1726684239566,-152.5,0.0001499,2]
[338475408,1726684239575,-152.5,0.0001499,2]
[338475409,1726684239584,-152.5,0.0001499,2]
[338475410,1726684239595,-152.5,0.0001499,2]
[338475412,1726684239604,-152.5,0.0001499,2]
[338475414,1726684239615,-152.5,0.0001499,2]
[338475416,1726684239625,-152.5,0.0001499,2]
[338475417,1726684239634,-152.5,0.0001499,2]
[338475418,1726684239643,-152.5,0.0001499,2]
[338475419,1726684239652,-152.5,0.0001499,2]
[338475420,1726684239661,-152.5,0.0001499,2]
[338475421,1726684239672,-1804.20293207,0.00014995,2]
[338475422,1726684239681,-915.94,0.00014999,2]
[338475423,1726684239690,-7353.23723872,0.00014999,2]
[338475424,1726684239699,-2000.0,0.00014999,2]
[338475425,1726684239708,-164.45418831,0.00015,2]
[338475426,1726684239718,-15200.34605691,0.00015,2]
[338475427,1726684239728,-1792362.79890632,0.00015,2]
[338475428,1726684239737,-441878.79202819,0.00015,2]
[338475434,1726684240069,-152.5,0.0001499,2]
[338475435,1726684240079,-150.85,0.0001499,2]
[338475437,1726684240711,-223.56591939,0.000129,2]
[338475438,1726684240721,-596.32577983,0.00012999,2]
[338475439,1726684240732,-1.65,0.0001499,2]
[338475440,1726684240741,-152.5,0.0001499,2]
[338475441,1726684240752,-152.5,0.0001499,2]
[338475442,1726684240761,-152.5,0.0001499,2]
[338475443,1726684240771,-152.5,0.0001499,2]
[338475444,1726684240780,-152.5,0.0001499,2]
[338475445,1726684240790,-35.5245431,0.0001499,2]
[338475446,1726684240802,-116.9754569,0.0001499,2]
[338475447,1726684240811,-152.5,0.0001499,2]
[338475448,1726684240820,-78.65099066,0.0001499,2]
[338475449,1726684240853,-73.84900934,0.0001499,2]
[338475450,1726684240864,-152.5,0.0001499,2]
[338475451,1726684240874,-1398.64005856,0.00015,2]
[338475452,1726684240884,-1611.99249798,0.00015,2]
[338475453,1726684240896,-5426.88897537,0.00015,2]
[338475454,1726684241047,-1128.25200002,0.00015,2]
[338475467,1726684243755,-1146.0,0.00014048,2]
[338475468,1726684243764,-858979.79153626,0.00015,2]
[338475469,1726684243774,-212710.02724237,0.00015,2]
[338475470,1726684243783,-150.0,0.00015,6]
[338475471,1726684243792,-1021863.10463782,0.00015,2]
[338475472,1726684243803,-256.424324,0.00015,2]
[338475473,1726684243814,-60571.984295,0.00015,2]
[338475474,1726684243826,-499776.74633025,0.00015,2]
[338475475,1726684245129,-2896.88843304,0.00015,2]
[338475476,1726684245142,-388.005,0.00015,2]
[338475485,1726684246615,-15223.43119216,0.00015,2]
[338475486,1726684246755,-3026.42731,0.00015,2]
[338475487,1726684263868,500.0,0.00011164,2]
[338475488,1726684265897,500.0,0.00011164,2]
[338475489,1726684340957,-266.393,0.0001278,2]
[338475490,1726684340978,-382.9,0.00013,2]
[338475491,1726684341006,-50.707,0.00013186,2]
[338475492,1726684368899,162.13,0.00010959,2]
[338475493,1726684533681,369.04,0.00011938,2]
[338475494,1726685122110,362.11,0.00011701,2]
[338475495,1726685128952,1050.0,0.00011,2]
[338475527,1726685431948,-325.4079,0.0001278,2]
[338475528,1726685431958,-382.62401839,0.000129,2]
[338475529,1726685431969,-188.09952315,0.00013,2]
[338475530,1726685431981,-156.51047685,0.00013,2]
[338475531,1726685431991,-519.58952315,0.00013,2]
[338475532,1726685432003,-478.49047685,0.00013,2]
[338475533,1726685432013,-2165.38364963,0.00013374,2]
[338475534,1726685432023,-119.3067964,0.00013488,2]
[338475535,1726685432034,-30.6932036,0.00013488,2]
[338475536,1726685432045,-150.0,0.00013488,2]
[338475537,1726685432055,-150.0,0.00013488,2]
[338475538,1726685432065,-150.0,0.00013488,2]
[338475539,1726685432075,-176.13,0.00013545,2]
[338475540,1726685432084,-514.76,0.00013558,2]
[338475541,1726685432094,-250.0,0.00013619,2]
[338475542,1726685432104,-150.0,0.00013699,2]
[338475543,1726685432114,-150.0,0.00013726,2]
[338475544,1726685432123,-409.01,0.00013726,2]
[338475545,1726685432132,-228.77,0.00013734,2]
[338475546,1726685432142,-2351.81,0.00013734,2]
[338475547,1726685432152,-167.71,0.00013735,2]
[338475548,1726685432162,-169.22,0.00013735,2]
[338475549,1726685432171,-150.0,0.00013737,2]
[338475550,1726685432181,-485.24,0.00013765,2]
[338475551,1726685432190,-500.0,0.00013904,2]
[338475552,1726685432204,-500.0,0.00013904,2]
[338475553,1726685432215,-362.11,0.00013965,2]
[338475554,1726685432224,-150.0,0.00013987,2]
[338475555,1726685432234,-998.08,0.00014015,2]
[338475556,1726685432243,-1065.35074307,0.00014047,2]
[338475557,1726685432252,-496.307,0.00014047,2]
[338475558,1726685432262,-163.599,0.00014047,2]
[338475559,1726685432272,-150.0,0.00014047,2]
[338475560,1726685432281,-448.334,0.00014048,2]
[338475561,1726685432292,-535.578,0.00014048,2]
[338475562,1726685432301,-1548.0,0.00014048,2]
[338475563,1726685432310,-625.0,0.00014048,2]